bitfinex/quotes_SOLUSD_20251130
["timestamp","ask_amount","ask_price","bid_price","bid_amount"]
[1764506046387,20.08845024,137.14,137.13,0.65]
[1764506052569,20.08845024,137.14,137.12,63.45]
[1764506052769,20.08845024,137.14,137.13,0.65]
[1764506053594,20.08845024,137.14,137.12,62.8]
[1764506053891,27.38030679,137.14,137.12,62.8]
[1764506054098,27.38030679,137.14,137.12,0.65]
[1764506054409,7.29185655,137.14,137.12,0.65]
[1764506054900,21.91300536,137.13,137.12,0.65]
[1764506055098,21.91300536,137.13,137.1,63.45]
[1764506055326,25.11300536,137.13,137.1,62.8]
[1764506055588,32.40587891,137.13,137.1,62.8]
[1764506055793,10.49287355,137.13,137.1,62.8]
[1764506056094,21.91620703,137.12,137.1,62.8]
[1764506056995,29.20919795,137.12,137.1,62.8]
[1764506057377,7.29299092,137.12,137.1,62.8]
[1764506057578,21.91780821,137.11,137.1,62.8]
[1764506059112,21.91780821,137.11,137.1,63.45]
[1764506059914,21.91780821,137.11,137.1,16.958864]
[1764506061394,21.91780821,137.11,137.1,0.65]
[1764506061608,21.91780821,137.11,137.1,16.958864]
[1764506065626,21.91780821,137.11,137.09,8.00435887]
[1764506065810,21.91780821,137.11,137.09,24.31322287]
[1764506066931,21.91780821,137.11,137.09,7.29435887]
[1764506067124,25.11780821,137.11,137.09,7.29435887]
[1764506067626,3.2,137.11,137.09,7.29435887]
[1764506067828,21.91940963,137.1,137.09,7.29435887]
[1764506068240,21.91940963,137.1,137.07,62.8]
[1764506068401,3.2,137.09,137.06,0.71]
[1764506069132,21.91940963,137.08,137.06,0.71]
[1764506069335,21.91940963,137.08,137.06,8.00588064]
[1764506070229,29.21442921,137.08,137.06,0.71]
[1764506070612,7.29501958,137.08,137.06,0.71]
[1764506070840,19.508864,137.07,137.06,0.71]
[1764506073633,19.508864,137.07,137.06,8.00607471]
[1764506074741,19.508864,137.07,137.06,70.80607471]
[1764506075541,19.508864,137.07,137.06,74.00607471]
[1764506079747,19.508864,137.07,137.06,66.71]
[1764506080354,19.508864,137.07,137.06,63.51]
[1764506086149,19.508864,137.07,137.06,62.8]
[1764506086451,19.508864,137.07,137.06,63.51]
[1764506086658,19.508864,137.07,137.06,0.71]
[1764506086857,19.508864,137.07,137.05,70.09637186]
[1764506087061,19.508864,137.07,137.05,70.80637186]
[1764506087266,19.508864,137.07,137.06,0.71]
[1764506088151,19.508864,137.07,137.05,70.80637186]
[1764506089866,19.508864,137.07,137.05,70.09637186]
[1764506090162,19.508864,137.07,137.05,62.8]
[1764506090346,19.508864,137.07,137.05,63.51]
[1764506090664,19.508864,137.07,137.06,0.71]
[1764506095176,19.508864,137.07,137.05,0.71]
[1764506099157,26.8044869,137.07,137.04,79.778864]
[1764506099652,7.2956229,137.07,137.04,79.778864]
[1764506099970,21.92421529,137.06,137.04,79.778864]
[1764506100164,21.92421529,137.06,137.04,87.07592396]
[1764506100563,21.92421529,137.06,137.05,0.67]
[1764506101281,21.92421529,137.06,137.04,87.07592396]
[1764506102370,21.92421529,137.06,137.05,0.67]
[1764506103365,21.92421529,137.06,137.05,7.96660707]
[1764506103691,7.29397673,137.1,137.05,11.45093021]
[1764506103979,21.92101128,137.08,137.06,0.67]
[1764506104975,21.92101128,137.08,137.06,7.96580334]
[1764506105177,21.92101128,137.08,137.07,0.67]
[1764506107883,21.92101128,137.08,137.07,3.87]
[1764506118499,3.2,137.11,137.07,73.96554242]
[1764506118696,8.80994492,137.14,137.08,0.67]
[1764506118892,21.91780821,137.1,137.08,70.76458887]
[1764506119301,21.91780821,137.1,137.09,0.67]
[1764506122414,21.91780821,137.1,137.09,7.96447808]
[1764506125317,10.49199261,137.14,137.09,70.76447808]
[1764506125618,21.91460608,137.12,137.1,0.68]
[1764506126485,21.91460608,137.12,137.11,7.29341404]
[1764506126885,21.91460608,137.12,137.11,7.97341404]
[1764506128111,21.91460608,137.12,137.11,7.29341404]
[1764506130384,21.91460608,137.12,137.1,7.97371637]
[1764506131199,21.91460608,137.12,137.1,70.77371637]
[1764506133215,21.91460608,137.12,137.1,70.77371637]
[1764506137518,21.91460608,137.12,137.1,70.09371637]
[1764506137722,21.91460608,137.12,137.11,0.68]
[1764506139811,21.91460608,137.12,137.1,63.48]
[1764506142115,32.40767142,137.12,137.1,63.48]
[1764506142419,10.49306534,137.12,137.1,63.48]
[1764506142796,21.91780821,137.11,137.1,63.48]
[1764506142995,21.91780821,137.11,137.1,0.68]
[1764506144514,21.91780821,137.11,137.08,7.29501021]
[1764506144819,21.91780821,137.11,137.08,7.97501021]
[1764506145002,21.91780821,137.11,137.09,0.68]
[1764506146001,21.91780821,137.11,137.09,70.77415205]
[1764506148029,21.91780821,137.11,137.1,0.68]
[1764506150442,21.91780821,137.11,137.09,62.8]
[1764506150654,21.91780821,137.11,137.1,0.68]
[1764506153443,21.91780821,137.11,137.09,0.68]
[1764506154445,29.21123235,137.11,137.09,0.68]
[1764506154842,7.29342414,137.11,137.09,0.68]
[1764506155039,21.91940963,137.1,137.09,0.68]
[1764506158851,21.91940963,137.1,137.09,7.97447808]
[1764506160547,21.91940963,137.1,137.09,74.25880122]
[1764506160756,10.49140634,137.15,137.09,92.49499642]
[1764506160938,32.40601242,137.15,137.1,0.67]
[1764506161329,10.49140634,137.15,137.1,0.67]
[1764506161543,21.91460608,137.14,137.1,0.67]
[1764506161745,21.91460608,137.14,137.11,7.29341404]
[1764506162137,21.91460608,137.14,137.12,0.67]
[1764506166234,20.09165144,137.14,137.12,0.67]
[1764506174864,20.09165144,137.14,137.12,7.96277273]
[1764506175254,20.09165144,137.14,137.13,0.67]
[1764506187177,20.09165144,137.14,137.11,26.1963529]
[1764506187381,20.09165144,137.14,137.12,0.67]
[1764506188289,20.09165144,137.14,137.12,7.96258873]
[1764506188489,20.09165144,137.14,137.13,0.67]
[1764506190086,20.09165144,137.14,137.12,7.96258873]
[1764506190456,20.09165144,137.14,137.13,0.67]
[1764506199703,20.09165144,137.14,137.11,63.47]
[1764506200006,20.09165144,137.14,137.12,0.67]
[1764506200007,27.38354286,137.14,137.12,0.67]
[1764506200207,27.38354286,137.14,137.11,63.47]
[1764506200412,7.29189142,137.14,137.11,70.76336443]
[1764506200594,21.91460608,137.13,137.11,70.76336443]
[1764506200794,21.91460608,137.13,137.12,0.67]
[1764506203205,21.91460608,137.13,137.11,63.47]
[1764506204926,21.91460608,137.13,137.11,62.8]
[1764506205419,21.91460608,137.13,137.11,0.67]
[1764506209819,21.91460608,137.13,137.1,7.96372254]
[1764506210012,25.11460608,137.13,137.1,7.96372254]
[1764506210213,32.40701508,137.13,137.1,0.67]
[1764506210410,10.492409,137.13,137.1,0.67]
[1764506210616,21.91620703,137.12,137.1,0.67]
[1764506210922,21.91620703,137.12,137.1,7.96390457]
[1764506211126,21.91620703,137.12,137.11,0.67]
[1764506211616,21.91620703,137.12,137.1,0.67]
[1764506215519,21.91620703,137.12,137.1,7.96388676]
[1764506215897,21.91620703,137.12,137.11,0.72]
[1764506217627,10.49139275,137.15,137.11,8.01341404]
[1764506217927,21.91460608,137.13,137.11,8.01341404]
[1764506218097,21.91460608,137.13,137.12,0.72]
[1764506219000,0.1,137.16,137.12,8.01288214]
[1764506219326,21.91140488,137.14,137.12,8.01288214]
[1764506219502,21.91140488,137.14,137.13,0.72]
[1764506220423,0.1,137.16,137.13,4.20432314]
[1764506220628,22.00820462,137.16,137.14,7.29181857]
[1764506220833,22.00820462,137.16,137.14,8.01181857]
[1764506221026,22.00820462,137.16,137.15,0.72]
[1764506223537,0.1,137.16,137.15,11.21128691]
[1764506224439,0.1,137.16,137.15,11.49561005]
[1764506229132,0.1,137.16,137.15,74.29561005]
[1764506230543,0.1,137.16,137.15,74.01128691]
[1764506230939,7.48929188,137.16,137.15,70.81128691]
[1764506231445,0.1,137.16,137.15,70.81128691]
[1764506236462,7.58929188,137.16,137.15,70.81128691]
[1764506237564,7.58929188,137.16,137.15,63.52]
[1764506241149,7.58929188,137.16,137.15,0.72]
[1764506246464,7.58929188,137.16,137.14,74.01170198]
[1764506246874,0.1,137.16,137.14,74.01170198]
[1764506247077,7.58929188,137.15,137.14,74.01170198]
[1764506247270,7.58929188,137.15,137.14,73.29170198]
[1764506247863,7.58929188,137.15,137.14,74.01170198]
[1764506251289,7.58929188,137.15,137.14,70.81170198]
[1764506256798,7.58929188,137.15,137.14,0.72]
[1764506256997,7.58929188,137.15,137.13,73.29218394]
[1764506257184,7.58929188,137.15,137.13,74.01218394]
[1764506257376,7.58929188,137.15,137.13,73.29218394]
[1764506257573,7.58929188,137.15,137.14,0.72]
[1764506259919,7.58929188,137.15,137.13,63.52]
[1764506260199,14.88073445,137.15,137.11,0.72]
[1764506260571,7.29144257,137.15,137.11,0.72]
[1764506260783,14.88073445,137.14,137.11,0.72]
[1764506261191,14.88073445,137.14,137.11,8.01337725]
[1764506263001,14.88073445,137.14,137.11,7.29337725]
[1764506263312,14.88073445,137.14,137.12,0.72]
[1764506275235,14.88073445,137.14,137.12,8.01276691]
[1764506275723,14.88073445,137.14,137.13,0.71]
[1764506279014,14.88073445,137.14,137.13,8.00235032]
[1764506280414,14.88073445,137.14,137.13,70.80235032]
[1764506280834,0.1,137.16,137.13,26.23322613]
[1764506281040,14.98073445,137.16,137.14,0.71]
[1764506282346,14.98073445,137.16,137.15,7.29128691]
[1764506283019,14.98073445,137.16,137.15,8.00128691]
[1764506286247,13.15804562,137.16,137.15,8.00128691]
[1764506288553,13.15804562,137.16,137.15,0.71]
[1764506290945,13.15804562,137.16,137.14,0.71]
[1764506291259,13.15804562,137.16,137.13,8.00222537]
[1764506291558,13.15804562,137.16,137.13,70.80222537]
[1764506291737,13.15804562,137.16,137.14,0.71]
[1764506293557,20.44893266,137.16,137.14,0.71]
[1764506294048,7.29088704,137.16,137.14,0.71]
[1764506294248,20.44893266,137.15,137.14,0.71]
[1764506314680,20.44893266,137.15,137.14,8.00181857]
[1764506319381,20.44893266,137.15,137.13,8.00235032]
[1764506319878,20.44893266,137.15,137.14,0.71]
[1764506327190,20.44893266,137.15,137.14,8.00181857]
[1764506327485,3.2,137.16,137.14,8.00181857]
[1764506327785,21.90980463,137.16,137.15,0.71]
[1764506328483,0.1,137.19,137.15,0.71]
[1764506328793,18.22970019,137.18,137.15,0.71]
[1764506330989,18.22970019,137.18,137.16,7.29075532]
[1764506331877,18.22970019,137.18,137.16,8.00075532]
[1764506338395,18.22970019,137.18,137.16,0.71]
[1764506338900,21.42970019,137.18,137.15,8.01109121]
[1764506339100,21.42970019,137.18,137.15,70.81109121]
[1764506339297,21.42970019,137.18,137.16,0.72]
[1764506340093,3.2,137.18,137.16,0.72]
[1764506340386,21.90660484,137.17,137.16,0.72]
[1764506340588,3.2,137.18,137.16,0.72]
[1764506340801,25.10660484,137.18,137.15,70.81109121]
[1764506341602,25.10660484,137.18,137.16,0.72]
[1764506341906,25.10660484,137.18,137.15,70.81109121]
[1764506342303,25.10660484,137.18,137.16,0.72]
[1764506343313,32.39630337,137.18,137.15,62.8]
[1764506343496,10.48969853,137.18,137.15,62.8]
[1764506343697,21.90980463,137.17,137.15,62.8]
[1764506343890,3.2,137.16,137.15,62.8]
[1764506344097,3.2,137.16,137.15,16.308864]
[1764506344497,25.10980463,137.16,137.15,16.308864]
[1764506348693,25.10980463,137.16,137.13,7.29218833]
[1764506348896,25.10980463,137.16,137.15,16.308864]
[1764506349486,25.10980463,137.16,137.13,7.29218833]
[1764506349892,3.2,137.16,137.13,7.29218833]
[1764506350092,21.91140488,137.15,137.13,7.29218833]
[1764506351813,21.91140488,137.15,137.13,8.01218833]
[1764506352108,21.91140488,137.15,137.13,0.72]
[1764506354111,21.91140488,137.15,137.12,79.108864]
[1764506354319,21.91140488,137.15,137.13,0.72]
[1764506361016,21.91140488,137.15,137.12,23.60154832]
[1764506361221,21.91140488,137.15,137.12,24.32154832]
[1764506362223,21.91140488,137.15,137.12,23.60154832]
[1764506362519,21.91140488,137.15,137.13,0.7]
[1764506363018,21.91140488,137.15,137.12,23.60154832]
[1764506363203,21.91140488,137.15,137.12,24.30154832]
[1764506364504,3.2,137.14,137.12,7.99268432]
[1764506365221,21.91460608,137.13,137.12,7.29268432]
[1764506365424,21.91460608,137.13,137.12,7.98268432]
[1764506369924,21.91460608,137.13,137.11,7.98341404]
[1764506371028,21.91460608,137.13,137.11,0.69]
[1764506371324,29.20697782,137.13,137.11,0.69]
[1764506371833,7.29237174,137.13,137.11,0.69]
[1764506372213,7.29237174,137.13,137.1,0.69]
[1764506372530,21.91620703,137.12,137.1,0.69]
[1764506372706,25.11620703,137.12,137.1,0.69]
[1764506373122,25.11620703,137.12,137.08,89.60370423]
[1764506373123,3.2,137.12,137.08,16.998864]
[1764506373431,21.91940963,137.11,137.07,0.69]
[1764506373834,10.49441394,137.1,137.07,0.69]
[1764506374456,21.92261317,137.09,137.07,0.69]
[1764506375907,29.21736493,137.09,137.07,0.69]
[1764506376309,7.29475176,137.09,137.07,0.69]
[1764506376517,21.92261317,137.08,137.07,0.69]
[1764506390446,29.21762338,137.08,137.07,0.69]
[1764506391026,32.41762338,137.08,137.07,0.69]
[1764506392346,32.41762338,137.08,137.05,0.69]
[1764506392525,32.41762338,137.08,137.04,63.49]
[1764506392728,28.73253574,137.08,137.03,79.798864]
[1764506392927,21.92742023,137.07,137.03,79.798864]
[1764506393238,3.2,137.06,137.04,0.69]
[1764506393840,21.92742023,137.05,137.04,0.69]
[1764506394050,21.92742023,137.05,137.04,16.998864]
[1764506400553,21.92742023,137.05,137.04,24.29600352]
[1764506405658,21.92742023,137.05,137.04,27.78032666]
[1764506405850,10.49404922,137.1,137.04,46.02317546]
[1764506406050,32.41666239,137.1,137.05,0.69]
[1764506406554,8.67056272,137.1,137.06,7.29607471]
[1764506406761,21.92261317,137.09,137.06,7.29607471]
[1764506406960,21.92261317,137.09,137.07,0.69]
[1764506407760,21.92261317,137.09,137.07,7.98545248]
[1764506408374,21.92261317,137.09,137.08,0.69]
[1764506409875,3.2,137.1,137.08,0.69]
[1764506410170,7.29545248,137.09,137.08,0.69]
[1764506412372,10.49397975,137.1,137.08,0.69]
[1764506413553,13.69397975,137.1,137.08,0.69]
[1764506413761,20.98801382,137.1,137.08,0.69]
[1764506416780,13.69397975,137.1,137.08,0.69]
[1764506417077,7.29353363,137.11,137.08,0.69]
[1764506417253,25.52637057,137.11,137.08,0.69]
[1764506419782,18.23283694,137.11,137.08,7.98496066]
[1764506419993,25.52625505,137.11,137.08,7.98496066]
[1764506420288,25.52625505,137.11,137.09,0.69]
[1764506426684,3.2,137.12,137.09,0.69]
[1764506426865,7.29277744,137.13,137.09,7.9840104]
[1764506427053,29.20898447,137.13,137.09,7.9840104]
[1764506427260,29.20898447,137.13,137.1,0.71]
[1764506430179,29.20898447,137.13,137.1,8.00383275]
[1764506430383,21.91620703,137.13,137.11,0.71]
[1764506441290,21.91620703,137.13,137.11,8.00329419]
[1764506441587,21.91300536,137.15,137.11,8.00329419]
[1764506441794,21.91300536,137.15,137.12,0.71]
[1764506443078,21.91300536,137.15,137.12,8.00252825]
[1764506443480,21.91300536,137.15,137.13,0.71]
[1764506447893,21.91300536,137.15,137.13,8.00229774]
[1764506448282,21.91300536,137.15,137.14,0.71]
[1764506449100,3.2,137.17,137.14,0.71]
[1764506449401,21.91140488,137.16,137.14,0.71]
[1764506450712,21.91140488,137.16,137.15,26.80015091]
[1764506450878,21.91140488,137.16,137.15,27.08447405]
[1764506451071,21.91140488,137.16,137.15,27.79447405]
[1764506451288,0.1,137.19,137.15,27.79447405]
[1764506451493,0.1,137.19,137.16,0.71]
[1764506453272,0.1,137.19,137.17,7.2902238]
[1764506453699,0.1,137.19,137.17,8.0002238]
[1764506455003,0.1,137.19,137.18,0.71]
[1764506457291,0.1,137.19,137.18,7.99969237]
[1764506459117,0.1,137.19,137.18,70.79969237]
[1764506464819,0.1,137.19,137.18,69.79969237]
[1764506465113,0.1,137.19,137.18,55.37569237]
[1764506465314,0.1,137.19,137.18,71.68455637]
[1764506466194,0.1,137.19,137.18,78.97424874]
[1764506466797,0.1,137.19,137.18,77.97424874]
[1764506467096,0.1,137.19,137.18,77.64424874]
[1764506469298,0.1,137.19,137.18,77.92857188]
[1764506476825,1e-08,137.19,137.18,70.4296528]
[1764506477423,1e-08,137.19,137.18,92.02938598]
[1764506478711,1e-08,137.19,137.18,95.22938598]
[1764506481903,1e-08,137.19,137.18,199.72938598]
[1764506483513,1e-08,137.27,137.22,47.03880892]
[1764506483711,1e-08,137.29,137.28,0.28432314]
[1764506483917,1e-08,137.29,137.28,4.18432314]
[1764506484312,1e-08,137.3,137.29,17.008864]
[1764506484723,1e-08,137.3,137.29,0.7]
[1764506484925,1e-08,137.3,137.28,3.18432314]
[1764506485127,1e-08,137.3,137.28,2.18432314]
[1764506485434,1e-08,137.3,137.28,1.62764814]
[1764506485606,1e-08,137.3,137.29,7.2838517]
[1764506485810,1e-08,137.3,137.29,6.2838517]
[1764506486713,1e-08,137.3,137.29,16.308864]
[1764506486912,1e-08,137.3,137.29,17.28318714]
[1764506487616,1e-08,137.3,137.29,24.56703884]
[1764506489934,1e-08,137.3,137.29,77.94273121]
[1764506494852,1e-08,137.3,137.29,23.87703884]
[1764506495355,1e-08,137.3,137.29,24.56703884]
[1764506495819,1e-08,137.3,137.29,8.25817484]
[1764506501745,1e-08,137.3,137.29,71.05817484]
[1764506504521,0.66000001,137.3,137.29,7.2838517]
[1764506504726,0.66000001,137.3,137.29,23.5927157]
[1764506505636,1e-08,137.3,137.29,23.5927157]
[1764506506564,1e-08,137.3,137.29,23.87703884]
[1764506506725,0.66000001,137.3,137.29,23.87703884]
[1764506507846,1e-08,137.3,137.29,23.87703884]
[1764506508247,1e-08,137.3,137.29,86.67703884]
[1764506508948,0.66000001,137.3,137.29,86.67703884]
[1764506509651,1e-08,137.3,137.29,87.36703884]
[1764506511149,1e-08,137.3,137.29,86.67703884]
[1764506512849,1e-08,137.3,137.29,87.36703884]
[1764506514158,1e-08,137.3,137.29,71.05817484]
[1764506514945,1e-08,137.3,137.29,79.86811976]
[1764506515453,1e-08,137.3,137.29,98.771368]
[1764506515850,1e-08,137.3,137.29,101.68798909]
[1764506517061,1e-08,137.33,137.32,25.40313206]
[1764506517365,1e-08,137.33,137.32,28.60313206]
[1764506517534,1e-08,137.33,137.32,29.26313206]
[1764506518156,1e-08,137.33,137.32,19.79318714]
[1764506518865,1e-08,137.33,137.32,27.07544755]
[1764506520540,1e-08,137.33,137.32,26.79112441]
[1764506520758,0.71000001,137.33,137.32,7.28226041]
[1764506521163,0.71000001,137.33,137.32,23.59112441]
[1764506521360,0.71000001,137.33,137.32,7.28226041]
[1764506521545,0.71000001,137.33,137.32,23.59112441]
[1764506522762,0.71000001,137.33,137.31,7.5671139]
[1764506522965,1e-08,137.33,137.31,7.5671139]
[1764506523151,0.71000001,137.33,137.31,23.8759779]
[1764506523864,1e-08,137.33,137.31,23.8759779]
[1764506525048,0.71000001,137.33,137.31,23.8759779]
[1764506525260,1e-08,137.33,137.31,23.8759779]
[1764506525562,0.71000001,137.33,137.31,23.8759779]
[1764506525764,1e-08,137.33,137.31,23.8759779]
[1764506526165,1e-08,137.33,137.31,86.6759779]
[1764506526343,0.71000001,137.33,137.31,86.6759779]
[1764506526748,1e-08,137.33,137.31,86.6759779]
[1764506528663,0.34596701,137.35,137.31,104.88295481]
[1764506528851,2.91704649,137.36,137.31,104.88295481]
[1764506530291,2.91704649,137.36,137.31,104.59863167]
[1764506530457,7.27907992,137.38,137.31,104.59863167]
[1764506530657,26.18677973,137.38,137.31,104.59863167]
[1764506530859,0.71,137.37,137.31,104.59863167]
[1764506531265,7.9899405,137.37,137.31,104.59863167]
[1764506531479,0.71,137.36,137.31,104.59863167]
[1764506532865,7.99025151,137.36,137.31,86.39165476]
[1764506533266,0.71,137.35,137.31,86.39165476]
[1764506535981,0.71,137.35,137.31,104.59863167]
[1764506537095,0.71,137.35,137.31,105.25863167]
[1764506537776,0.71,137.35,137.31,104.59863167]
[1764506539965,0.71,137.35,137.31,86.39165476]
[1764506546386,7.99082545,137.35,137.31,23.59165476]
[1764506546764,0.7,137.34,137.31,23.59165476]
[1764506549475,7.9812618,137.34,137.31,23.59165476]
[1764506549989,0.7,137.33,137.31,23.59165476]
[1764506550371,0.7,137.33,137.31,16.308864]
[1764506551271,0.7,137.33,137.31,23.59157501]
[1764506554291,0.7,137.33,137.31,24.30157501]
[1764506554985,0.7,137.33,137.31,23.59157501]
[1764506555284,0.7,137.36,137.32,0.71]
[1764506555486,3.9,137.36,137.32,0.71]
[1764506555873,0.7,137.35,137.32,7.99189834]
[1764506556089,0.7,137.35,137.32,7.28189834]
[1764506558498,3.9,137.35,137.32,7.28189834]
[1764506558683,3.9,137.35,137.32,70.79189834]
[1764506559198,0.7,137.34,137.32,70.79189834]
[1764506559500,0.7,137.34,137.32,70.08189834]
[1764506562875,0.7,137.34,137.32,70.79189834]
[1764506563081,7.97962962,137.37,137.33,0.71]
[1764506563289,7.27962962,137.37,137.33,0.71]
[1764506563491,0.7,137.36,137.33,0.71]
[1764506563776,0.7,137.36,137.33,7.99129497]
[1764506565802,0.67996,137.36,137.33,7.99129497]
[1764506566300,7.27876734,137.39,137.34,0.71]
[1764506566599,10.47876734,137.39,137.34,0.71]
[1764506566778,7.27876734,137.39,137.34,0.71]
[1764506567382,7.27876734,137.39,137.35,7.28066982]
[1764506567782,3.2,137.39,137.36,0.71]
[1764506567989,0.7,137.38,137.36,0.71]
[1764506568990,3.2,137.39,137.36,7.98988717]
[1764506569299,0.7,137.38,137.36,7.98988717]
[1764506570199,0.7,137.38,137.35,7.99066982]
[1764506570778,0.7,137.41,137.36,0.71]
[1764506571011,3.9,137.41,137.38,16.308864]
[1764506571185,0.7,137.41,137.38,16.308864]
[1764506571382,0.7,137.4,137.38,16.308864]
[1764506571593,3.9,137.41,137.38,17.018864]
[1764506571882,0.7,137.4,137.38,17.018864]
[1764506572289,0.7,137.4,137.38,16.308864]
[1764506572488,0.7,137.4,137.38,23.58789389]
[1764506572687,3.9,137.42,137.39,0.71]
[1764506572889,0.7,137.41,137.39,0.71]
[1764506573284,0.7,137.41,137.38,23.58789389]
[1764506573498,0.7,137.41,137.38,24.29789389]
[1764506575112,0.63542713,137.43,137.39,0.71]
[1764506575423,1.32542713,137.43,137.39,0.71]
[1764506575798,1.32542713,137.43,137.4,7.27802037]
[1764506576214,0.63542713,137.43,137.41,0.71]
[1764506576589,1.32542713,137.43,137.41,0.71]
[1764506576793,1.32542713,137.43,137.4,7.27802037]
[1764506576993,1.32542713,137.43,137.4,7.98802037]
[1764506577215,1.32542713,137.43,137.4,7.27802037]
[1764506577419,1.32542713,137.43,137.41,0.71]
[1764506577707,0.63542713,137.43,137.42,7.27696114]
[1764506577912,0.63542713,137.43,137.42,7.98696114]
[1764506578711,0.13542713,137.43,137.42,7.27696114]
[1764506579024,0.13542713,137.43,137.42,7.98696114]
[1764506580294,0.13542713,137.43,137.42,8.27128428]
[1764506580929,0.13542713,137.43,137.42,24.58014828]
[1764506581422,2.24097675,137.47,137.45,16.308864]
[1764506581621,1e-08,137.47,137.46,12.29426806]
[1764506581844,1e-08,137.49,137.48,25.40313206]
[1764506582135,1e-08,137.49,137.48,34.12871189]
[1764506582628,1e-08,137.49,137.48,0.28432314]
[1764506583023,0.69000001,137.49,137.48,16.308864]
[1764506583230,1e-08,137.49,137.47,7.27431439]
[1764506583543,1e-08,137.49,137.48,0.28432314]
[1764506583904,0.69000001,137.49,137.48,16.308864]
[1764506585231,1e-08,137.49,137.48,16.308864]
[1764506585432,1e-08,137.49,137.48,3.50432314]
[1764506585912,1e-08,137.49,137.48,3.22]
[1764506587016,0.69000001,137.49,137.48,7.27378527]
[1764506587325,1e-08,137.49,137.48,7.27378527]
[1764506588437,1e-08,137.49,137.47,7.55863753]
[1764506588602,0.69000001,137.49,137.47,7.55863753]
[1764506589428,0.69000001,137.49,137.45,3.22]
[1764506589726,0.69000001,137.49,137.46,0.28432314]
[1764506589932,0.69000001,137.49,137.46,16.59318714]
[1764506590552,1e-08,137.49,137.46,16.59318714]
[1764506590835,1e-08,137.49,137.48,25.40313206]
[1764506591033,1e-08,137.49,137.48,28.62313206]
[1764506591416,1e-08,137.49,137.48,35.89691733]
[1764506593847,0.1,137.52,137.51,16.308864]
[1764506594146,0.1,137.52,137.51,19.528864]
[1764506595944,0.69,137.6,137.56,0.14216157]
[1764506596128,7.36602111,137.63,137.56,0.28432314]
[1764506596310,0.69,137.59,137.56,0.28432314]
[1764506597126,0.69,137.59,137.55,19.528864]
[1764506597534,0.69,137.59,137.56,16.308864]
[1764506598431,0.69,137.59,137.56,23.57835478]
[1764506600237,0.69,137.59,137.56,22.57835478]
[1764506600436,7.95804691,137.59,137.54,7.2700909]
[1764506600651,0.69,137.58,137.54,7.2700909]
[1764506600953,0.69,137.58,137.55,0.28432314]
[1764506601245,0.1,137.63,137.57,0.28432314]
[1764506601444,0.1,137.63,137.59,9.09426806]
[1764506601654,0.69,137.62,137.59,9.09426806]
[1764506601818,0.69,137.62,137.6,7.26744186]
[1764506602019,0.69,137.62,137.56,8.80994492]
[1764506602020,0.69,137.62,137.57,3.22]
[1764506602233,0.69,137.62,137.58,25.72406728]
[1764506604933,0.69,137.62,137.58,7.26849832]
[1764506606648,0.69,137.62,137.58,70.06849832]
[1764506606826,0.1,137.63,137.61,16.308864]
[1764506607023,0.67,137.62,137.61,16.308864]
[1764506607746,0.67,137.62,137.59,0.28432314]
[1764506607925,0.67,137.62,137.59,16.59318714]
[1764506608251,0.67,137.62,137.59,16.308864]
[1764506608727,0.67,137.62,137.6,7.26744186]
[1764506610648,0.1,137.63,137.62,7.55070883]
[1764506611428,0.77,137.63,137.61,7.2665318]
[1764506614030,0.1,137.63,137.62,0.28432314]
[1764506615142,0.1,137.63,137.62,7.55070883]
[1764506615730,0.1,137.63,137.62,0.28432314]
[1764506615940,0.77,137.63,137.61,10.48687451]
[1764506616145,0.77,137.63,137.61,7.26687451]
[1764506616347,0.77,137.63,137.59,3.22]
[1764506616550,0.77,137.63,137.57,3.22]
[1764506617451,0.77,137.63,137.59,16.308864]
[1764506619159,0.77,137.63,137.59,23.57665544]
[1764506621943,8.03626061,137.63,137.59,7.26779144]
[1764506622133,8.03626061,137.63,137.58,7.26838696]
[1764506622338,0.67,137.62,137.56,7.2693663]